[Event "*** Titled Tuesday Blitz"]
[Site "Chess.com"]
[Date "2021.04.27"]
[Round "2"]
[White "Korchmar_Vasiliy"]
[Black "RiskyDecision"]
[Result "0-1"]
[WhiteElo "2693"]
[BlackElo "2519"]
[TimeControl "180+1"]
[EndTime "10:19:17 PDT"]
[Termination "RiskyDecision won by checkmate"]

1. d4 {[%clk 0:03:00.9]} 1... f5 {[%clk 0:02:59.5]} 2. Nf3 {[%clk 0:03:00.6]}
2... Nf6 {[%clk 0:02:59.9]} 3. g3 {[%clk 0:03:01]} 3... g6 {[%clk 0:03:00.4]} 4.
Bg2 {[%clk 0:03:01.5]} 4... Bg7 {[%clk 0:03:01]} 5. O-O {[%clk 0:03:02.2]} 5...
O-O {[%clk 0:03:01.7]} 6. c4 {[%clk 0:03:02.9]} 6... d6 {[%clk 0:03:02.3]} 7.
Nc3 {[%clk 0:03:03.5]} 7... c6 {[%clk 0:03:02.6]} 8. b3 {[%clk 0:02:59]} 8...
Qc7 {[%clk 0:02:59.4]} 9. Bb2 {[%clk 0:02:49]} 9... e5 {[%clk 0:02:56.1]} 10.
dxe5 {[%clk 0:02:43.4]} 10... dxe5 {[%clk 0:02:57]} 11. e4 {[%clk 0:02:43.5]}
11... Na6 {[%clk 0:02:41.8]} 12. Qe2 {[%clk 0:02:24]} 12... f4 {[%clk
0:02:38.1]} 13. Na4 {[%clk 0:02:08.5]} 13... Bg4 {[%clk 0:02:27.3]} 14. h3
{[%clk 0:02:02.3]} 14... Bxf3 {[%clk 0:02:27.4]} 15. Bxf3 {[%clk 0:02:03.2]}
15... fxg3 {[%clk 0:02:25]} 16. fxg3 {[%clk 0:02:04.1]} 16... Rad8 {[%clk
0:02:16.6]} 17. Rad1 {[%clk 0:01:58.5]} 17... Nd7 {[%clk 0:01:51.7]} 18. Ba3
{[%clk 0:01:52.7]} 18... Rfe8 {[%clk 0:01:18.1]} 19. Rd3 {[%clk 0:01:21]} 19...
Bf8 {[%clk 0:01:17.5]} 20. c5 {[%clk 0:00:49.5]} 20... Ndxc5 {[%clk 0:01:12.1]}
21. Rxd8 {[%clk 0:00:48.1]} 21... Rxd8 {[%clk 0:01:02]} 22. Nxc5 {[%clk
0:00:29.6]} 22... Nxc5 {[%clk 0:00:45.9]} 23. Qc4+ {[%clk 0:00:29.8]} 23... Qf7
{[%clk 0:00:45.8]} 24. Be2 {[%clk 0:00:30]} 24... Qxc4 {[%clk 0:00:38.1]} 25.
Bxc4+ {[%clk 0:00:30.9]} 25... Kh8 {[%clk 0:00:28]} 26. Rxf8+ {[%clk 0:00:19.3]}
26... Rxf8 {[%clk 0:00:28.9]} 27. Bxc5 {[%clk 0:00:19.5]} 27... Rd8 {[%clk
0:00:25.4]} 28. Bxa7 {[%clk 0:00:09.1]} 28... Ra8 {[%clk 0:00:24.4]} 29. Bb6
{[%clk 0:00:09.4]} 29... Rxa2 {[%clk 0:00:24.4]} 30. Bc7 {[%clk 0:00:10.1]}
30... Kg7 {[%clk 0:00:20.9]} 31. Bxe5+ {[%clk 0:00:09.8]} 31... Kh6 {[%clk
0:00:21.4]} 32. Bf4+ {[%clk 0:00:06.2]} 32... g5 {[%clk 0:00:20.9]} 33. Be3
{[%clk 0:00:06.7]} 33... b5 {[%clk 0:00:19.5]} 34. Be6 {[%clk 0:00:05.4]} 34...
Kg6 {[%clk 0:00:18.8]} 35. Bf5+ {[%clk 0:00:05.9]} 35... Kf6 {[%clk 0:00:18.1]}
36. Bd4+ {[%clk 0:00:05.2]} 36... Ke7 {[%clk 0:00:18.7]} 37. Bc5+ {[%clk
0:00:05.3]} 37... Kf6 {[%clk 0:00:17.4]} 38. Bd6 {[%clk 0:00:05.3]} 38... Rb2
{[%clk 0:00:16.8]} 39. b4 {[%clk 0:00:05.8]} 39... Rc2 {[%clk 0:00:15.2]} 40. g4
{[%clk 0:00:05.6]} 40... Rc4 {[%clk 0:00:14.7]} 41. Bc5 {[%clk 0:00:05.1]} 41...
Ke5 {[%clk 0:00:12.3]} 42. Bf2 {[%clk 0:00:04.2]} 42... Kf4 {[%clk 0:00:11]} 43.
Bc5 {[%clk 0:00:03.5]} 43... Kf3 {[%clk 0:00:09]} 44. Kh2 {[%clk 0:00:01.8]}
44... Rc2+ {[%clk 0:00:08.6]} 45. Kh1 {[%clk 0:00:02.1]} 45... Rc1+ {[%clk
0:00:08.5]} 46. Bg1 {[%clk 0:00:02]} 46... Re1 {[%clk 0:00:06.9]} 47. h4 {[%clk
0:00:01.2]} 47... gxh4 {[%clk 0:00:02.4]} 48. Kh2 {[%clk 0:00:01.8]} 48... h6
{[%clk 0:00:02.8]} 49. Bc5 {[%clk 0:00:01.8]} 49... Kf4 {[%clk 0:00:02.7]} 50.
Bd4 {[%clk 0:00:02]} 50... Re2+ {[%clk 0:00:03]} 51. Kh3 {[%clk 0:00:02.1]}
51... Rd2 {[%clk 0:00:03.3]} 52. Bc5 {[%clk 0:00:02.5]} 52... Rd1 {[%clk
0:00:03]} 53. Kxh4 {[%clk 0:00:03.4]} 53... Rh1# {[%clk 0:00:03.1]} 0-1

[Event "*** Titled Tuesday Blitz"]
[Site "Chess.com"]
[Date "2021.04.27"]
[Round "2"]
[White "alexrustemov"]
[Black "Vaathi_Coming"]
[Result "1/2-1/2"]
[WhiteElo "2591"]
[BlackElo "2877"]
[TimeControl "180+1"]
[EndTime "10:19:24 PDT"]
[Termination "Game drawn by repetition"]

1. d4 {[%clk 0:03:00.9]} 1... c6 {[%clk 0:02:57.9]} 2. c4 {[%clk 0:03:00.6]}
2... Nf6 {[%clk 0:02:56.3]} 3. Nc3 {[%clk 0:03:00.7]} 3... d5 {[%clk 0:02:54.8]}
4. e3 {[%clk 0:03:01.1]} 4... g6 {[%clk 0:02:54.9]} 5. Nf3 {[%clk 0:03:00.8]}
5... Bg7 {[%clk 0:02:55.6]} 6. Bd3 {[%clk 0:03:01.5]} 6... O-O {[%clk
0:02:56.2]} 7. O-O {[%clk 0:03:01.9]} 7... Bg4 {[%clk 0:02:56.4]} 8. h3 {[%clk
0:03:01.4]} 8... Bxf3 {[%clk 0:02:55.9]} 9. Qxf3 {[%clk 0:03:02.3]} 9... e6
{[%clk 0:02:48.6]} 10. Rd1 {[%clk 0:03:01.3]} 10... Nbd7 {[%clk 0:02:48.2]} 11.
Bd2 {[%clk 0:03:00.9]} 11... Ne8 {[%clk 0:02:45.1]} 12. b4 {[%clk 0:02:49.7]}
12... f5 {[%clk 0:02:38.9]} 13. a4 {[%clk 0:02:47.5]} 13... Ndf6 {[%clk
0:02:35.4]} 14. b5 {[%clk 0:02:42.6]} 14... Ne4 {[%clk 0:02:27.9]} 15. Be1
{[%clk 0:02:39.5]} 15... N8d6 {[%clk 0:02:21.6]} 16. bxc6 {[%clk 0:02:30.8]}
16... bxc6 {[%clk 0:02:21.6]} 17. Qe2 {[%clk 0:02:30.2]} 17... Re8 {[%clk
0:02:12.3]} 18. Qc2 {[%clk 0:02:24.4]} 18... Qg5 {[%clk 0:02:07.8]} 19. Ne2
{[%clk 0:02:12]} 19... Rac8 {[%clk 0:02:02.7]} 20. Rac1 {[%clk 0:02:06.5]} 20...
Bh6 {[%clk 0:01:31.6]} 21. Qa2 {[%clk 0:02:02.5]} 21... Qh4 {[%clk 0:01:21.7]}
22. cxd5 {[%clk 0:01:59.4]} 22... cxd5 {[%clk 0:01:20]} 23. Rxc8 {[%clk
0:01:45.8]} 23... Rxc8 {[%clk 0:01:20.9]} 24. a5 {[%clk 0:01:22.2]} 24... Qd8
{[%clk 0:01:09.1]} 25. a6 {[%clk 0:01:13.2]} 25... Bf8 {[%clk 0:00:59.8]} 26.
Rb1 {[%clk 0:01:12.7]} 26... Rc6 {[%clk 0:00:39.1]} 27. Qa4 {[%clk 0:01:09.6]}
27... Qc8 {[%clk 0:00:35.7]} 28. f3 {[%clk 0:01:07.3]} 28... Nf6 {[%clk
0:00:34.5]} 29. Bh4 {[%clk 0:01:06.4]} 29... Nd7 {[%clk 0:00:33]} 30. Bg3 {[%clk
0:00:48.6]} 30... Nb6 {[%clk 0:00:32.6]} 31. Qb3 {[%clk 0:00:46.8]} 31... Ndc4
{[%clk 0:00:28.9]} 32. e4 {[%clk 0:00:39.9]} 32... Nd2 {[%clk 0:00:26.5]} 33.
Qb5 {[%clk 0:00:32.7]} 33... Nxb1 {[%clk 0:00:25.6]} 34. Bxb1 {[%clk 0:00:33.6]}
34... Qd7 {[%clk 0:00:19]} 35. Kh2 {[%clk 0:00:31.9]} 35... Rc8 {[%clk
0:00:16.1]} 36. Qd3 {[%clk 0:00:29.7]} 36... Bd6 {[%clk 0:00:15.5]} 37. exf5
{[%clk 0:00:23.8]} 37... exf5 {[%clk 0:00:13.9]} 38. Be5 {[%clk 0:00:15.8]}
38... Bxe5+ {[%clk 0:00:08.2]} 39. dxe5 {[%clk 0:00:16.7]} 39... Qe7 {[%clk
0:00:05.4]} 40. f4 {[%clk 0:00:16.5]} 40... Qc5 {[%clk 0:00:05]} 41. Ba2 {[%clk
0:00:14.7]} 41... Qc2 {[%clk 0:00:03.9]} 42. Bxd5+ {[%clk 0:00:10.4]} 42... Kg7
{[%clk 0:00:04.4]} 43. Qf3 {[%clk 0:00:08.9]} 43... Qc5 {[%clk 0:00:02.5]} 44.
Bb7 {[%clk 0:00:08.4]} 44... Rc7 {[%clk 0:00:03]} 45. Ng3 {[%clk 0:00:07.8]}
45... Nc4 {[%clk 0:00:02.4]} 46. Qd3 {[%clk 0:00:07.6]} 46... Ne3 {[%clk
0:00:01.1]} 47. Qd8 {[%clk 0:00:07.5]} 47... Kh6 {[%clk 0:00:01.3]} 48. Qg5+
{[%clk 0:00:06.4]} 48... Kg7 {[%clk 0:00:01.8]} 49. Nh5+ {[%clk 0:00:07.2]}
49... Kg8 {[%clk 0:00:02.2]} 50. Nf6+ {[%clk 0:00:06.6]} 50... Kg7 {[%clk
0:00:02.2]} 51. Nh5+ {[%clk 0:00:06.7]} 51... Kf7 {[%clk 0:00:02.3]} 52. Qf6+
{[%clk 0:00:06.6]} 52... Kg8 {[%clk 0:00:02.6]} 53. Qd8+ {[%clk 0:00:05.8]}
53... Kf7 {[%clk 0:00:02.1]} 54. Qf6+ {[%clk 0:00:05.2]} 54... Kg8 {[%clk
0:00:02.7]} 55. Qd8+ {[%clk 0:00:04.8]} 55... Kf7 {[%clk 0:00:03.3]} 56. Qf6+
{[%clk 0:00:05]} 1/2-1/2

[Event "*** Titled Tuesday Blitz"]
[Site "Chess.com"]
[Date "2021.04.27"]
[Round "2"]
[White "ShahMatKanal"]
[Black "Shahaliyev"]
[Result "1-0"]
[WhiteElo "2423"]
[BlackElo "2641"]
[TimeControl "180+1"]
[EndTime "10:19:24 PDT"]
[Termination "ShahMatKanal won by checkmate"]

1. d4 {[%clk 0:03:00.9]} 1... Nf6 {[%clk 0:02:58.5]} 2. Nf3 {[%clk 0:02:59.8]}
2... c5 {[%clk 0:02:56.2]} 3. e3 {[%clk 0:02:59.1]} 3... d5 {[%clk 0:02:55.2]}
4. b3 {[%clk 0:02:57.6]} 4... Nc6 {[%clk 0:02:54.2]} 5. Bb2 {[%clk 0:02:55.7]}
5... Bg4 {[%clk 0:02:54.2]} 6. h3 {[%clk 0:02:53.4]} 6... Bh5 {[%clk 0:02:53.6]}
7. Nbd2 {[%clk 0:02:45.7]} 7... e6 {[%clk 0:02:50.2]} 8. a3 {[%clk 0:02:41.4]}
8... Rc8 {[%clk 0:02:45.1]} 9. Bd3 {[%clk 0:02:39.6]} 9... a6 {[%clk 0:02:44.7]}
10. Qe2 {[%clk 0:02:21.2]} 10... Bd6 {[%clk 0:02:37.2]} 11. g4 {[%clk
0:02:01.8]} 11... Bg6 {[%clk 0:02:36.5]} 12. Ne5 {[%clk 0:01:42.4]} 12... Bxd3
{[%clk 0:02:28.5]} 13. Nxd3 {[%clk 0:01:36.4]} 13... cxd4 {[%clk 0:01:54.2]} 14.
exd4 {[%clk 0:01:36]} 14... Qb6 {[%clk 0:01:54.8]} 15. Qe3 {[%clk 0:01:23.3]}
15... O-O {[%clk 0:01:49.7]} 16. O-O {[%clk 0:01:13.6]} 16... Rfe8 {[%clk
0:01:37.1]} 17. Rae1 {[%clk 0:01:03.9]} 17... Ne7 {[%clk 0:01:24.5]} 18. Rc1
{[%clk 0:00:56.1]} 18... Ng6 {[%clk 0:01:22.9]} 19. f4 {[%clk 0:00:47.1]} 19...
e5 {[%clk 0:01:19.6]} 20. fxe5 {[%clk 0:00:31.4]} 20... Nxe5 {[%clk 0:01:19.6]}
21. Nxe5 {[%clk 0:00:31.6]} 21... Rxe5 {[%clk 0:01:09.9]} 22. Qf2 {[%clk
0:00:29.2]} 22... Rce8 {[%clk 0:01:02.7]} 23. Rce1 {[%clk 0:00:26.8]} 23... Rxe1
{[%clk 0:00:58.1]} 24. Rxe1 {[%clk 0:00:27.7]} 24... Ne4 {[%clk 0:00:58.7]} 25.
Nxe4 {[%clk 0:00:22.5]} 25... dxe4 {[%clk 0:00:59.6]} 26. Qg2 {[%clk 0:00:16.2]}
26... Qc6 {[%clk 0:00:58.4]} 27. c4 {[%clk 0:00:15.4]} 27... b5 {[%clk
0:00:58.8]} 28. d5 {[%clk 0:00:15.3]} 28... Bc5+ {[%clk 0:00:53]} 29. Kh1 {[%clk
0:00:14.1]} 29... Qg6 {[%clk 0:00:52.8]} 30. b4 {[%clk 0:00:13.8]} 30... Bf8
{[%clk 0:00:40]} 31. c5 {[%clk 0:00:14]} 31... h5 {[%clk 0:00:40.5]} 32. d6
{[%clk 0:00:13.7]} 32... hxg4 {[%clk 0:00:40.7]} 33. Qxg4 {[%clk 0:00:14.6]}
33... Qh6 {[%clk 0:00:34.2]} 34. d7 {[%clk 0:00:09.1]} 34... Rd8 {[%clk
0:00:31.2]} 35. Rxe4 {[%clk 0:00:09.6]} 35... Qc6 {[%clk 0:00:27.7]} 36. Kh2
{[%clk 0:00:07]} 36... Rxd7 {[%clk 0:00:24.1]} 37. Re2 {[%clk 0:00:06.9]} 37...
Rd3 {[%clk 0:00:13]} 38. Rg2 {[%clk 0:00:06.9]} 38... Qc7+ {[%clk 0:00:11.9]}
39. Kh1 {[%clk 0:00:04.1]} 39... g6 {[%clk 0:00:11.8]} 40. Qe4 {[%clk
0:00:02.8]} 40... Rd1+ {[%clk 0:00:11.4]} 41. Rg1 {[%clk 0:00:03.2]} 41... Rd2
{[%clk 0:00:10.4]} 42. Rg2 {[%clk 0:00:03.7]} 42... Rd1+ {[%clk 0:00:07]} 43.
Rg1 {[%clk 0:00:04.1]} 43... Rxg1+ {[%clk 0:00:07.4]} 44. Kxg1 {[%clk
0:00:04.1]} 44... Qg3+ {[%clk 0:00:08.3]} 45. Qg2 {[%clk 0:00:03.3]} 45... Qe1+
{[%clk 0:00:08.1]} 46. Kh2 {[%clk 0:00:04.2]} 46... Bh6 {[%clk 0:00:07.1]} 47.
Qf3 {[%clk 0:00:03.3]} 47... Qd2+ {[%clk 0:00:07]} 48. Qg2 {[%clk 0:00:03.3]}
48... Bf4+ {[%clk 0:00:06.8]} 49. Kg1 {[%clk 0:00:02.4]} 49... Qe1+ {[%clk
0:00:05.9]} 50. Qf1 {[%clk 0:00:02.8]} 50... Qg3+ {[%clk 0:00:05.2]} 51. Qg2
{[%clk 0:00:02.4]} 51... Be3+ {[%clk 0:00:05.7]} 52. Kf1 {[%clk 0:00:02.3]}
52... Qf4+ {[%clk 0:00:06.3]} 53. Ke2 {[%clk 0:00:02.7]} 53... Bd2 {[%clk
0:00:05.2]} 54. Qa8+ {[%clk 0:00:02.5]} 54... Kh7 {[%clk 0:00:04]} 55. Qh8#
{[%clk 0:00:02.4]} 1-0

[Event "*** Titled Tuesday Blitz"]
[Site "Chess.com"]
[Date "2021.04.27"]
[Round "2"]
[White "CM_rui"]
[Black "Buffy7"]
[Result "1-0"]
[WhiteElo "2522"]
[BlackElo "2700"]
[TimeControl "180+1"]
[EndTime "10:19:25 PDT"]
[Termination "CM_rui won by checkmate"]

1. e4 {[%clk 0:03:00.9]} 1... c5 {[%clk 0:02:56.8]} 2. Nf3 {[%clk 0:03:00.5]}
2... e6 {[%clk 0:02:57.3]} 3. c4 {[%clk 0:03:00.9]} 3... Nc6 {[%clk 0:02:55.5]}
4. d4 {[%clk 0:03:01.2]} 4... cxd4 {[%clk 0:02:53.9]} 5. Nxd4 {[%clk 0:03:02.1]}
5... Nf6 {[%clk 0:02:54.4]} 6. Nc3 {[%clk 0:03:00]} 6... Bb4 {[%clk 0:02:54.8]}
7. Nxc6 {[%clk 0:02:59.9]} 7... bxc6 {[%clk 0:02:53.9]} 8. Bd3 {[%clk
0:02:59.9]} 8... e5 {[%clk 0:02:53.1]} 9. O-O {[%clk 0:02:59.7]} 9... O-O {[%clk
0:02:51.5]} 10. Qc2 {[%clk 0:02:47.9]} 10... d6 {[%clk 0:02:29.3]} 11. Na4
{[%clk 0:02:38.7]} 11... Ba5 {[%clk 0:02:14.8]} 12. a3 {[%clk 0:02:36.8]} 12...
Bc7 {[%clk 0:02:03.3]} 13. Bg5 {[%clk 0:02:27.8]} 13... h6 {[%clk 0:02:02.6]}
14. Bh4 {[%clk 0:02:27.2]} 14... g5 {[%clk 0:01:54.9]} 15. Bg3 {[%clk
0:02:25.9]} 15... Nh5 {[%clk 0:01:53.5]} 16. Rad1 {[%clk 0:02:15.3]} 16... Qe7
{[%clk 0:01:47]} 17. Be2 {[%clk 0:01:56]} 17... Ng7 {[%clk 0:01:46]} 18. c5
{[%clk 0:01:52.1]} 18... Ne6 {[%clk 0:01:26.5]} 19. cxd6 {[%clk 0:01:44.2]}
19... Bxd6 {[%clk 0:01:26.7]} 20. Qxc6 {[%clk 0:01:43.6]} 20... Bd7 {[%clk
0:00:41]} 21. Qxd6 {[%clk 0:01:43.6]} 21... Qxd6 {[%clk 0:00:41.1]} 22. Rxd6
{[%clk 0:01:44.5]} 22... Bxa4 {[%clk 0:00:41.4]} 23. Bxe5 {[%clk 0:01:45.2]}
23... Rac8 {[%clk 0:00:39.8]} 24. Bg4 {[%clk 0:01:37.7]} 24... Bb3 {[%clk
0:00:36.7]} 25. h3 {[%clk 0:01:22.7]} 25... a5 {[%clk 0:00:31.6]} 26. f4 {[%clk
0:01:13.4]} 26... gxf4 {[%clk 0:00:26.9]} 27. Bxf4 {[%clk 0:01:13.6]} 27... Kg7
{[%clk 0:00:26.1]} 28. Be5+ {[%clk 0:01:11]} 28... Kg8 {[%clk 0:00:23.2]} 29.
Rf6 {[%clk 0:01:08.1]} 29... Rc5 {[%clk 0:00:23.4]} 30. Bc3 {[%clk 0:00:57.1]}
30... Rfc8 {[%clk 0:00:18.5]} 31. Rxh6 {[%clk 0:00:52.2]} 31... Rxc3 {[%clk
0:00:17.8]} 32. bxc3 {[%clk 0:00:52.8]} 32... Rxc3 {[%clk 0:00:18.3]} 33. Bf5
{[%clk 0:00:38.8]} 33... a4 {[%clk 0:00:16.4]} 34. Rh7 {[%clk 0:00:33.3]} 34...
Rc1+ {[%clk 0:00:14.5]} 35. Kh2 {[%clk 0:00:33.3]} 35... Rc8 {[%clk 0:00:15]}
36. Ra6 {[%clk 0:00:26.8]} 36... Re8 {[%clk 0:00:14.8]} 37. Ra7 {[%clk
0:00:26.5]} 37... Nd4 {[%clk 0:00:13.6]} 38. Rh5 {[%clk 0:00:23.1]} 38... Nxf5
{[%clk 0:00:13.3]} 39. exf5 {[%clk 0:00:22.8]} 39... Kg7 {[%clk 0:00:13.8]} 40.
Ra6 {[%clk 0:00:22.2]} 40... Re2 {[%clk 0:00:12.6]} 41. Rg5+ {[%clk 0:00:20.4]}
41... Kf8 {[%clk 0:00:12.9]} 42. f6 {[%clk 0:00:20]} 42... Ke8 {[%clk 0:00:13]}
43. Ra8+ {[%clk 0:00:19]} 43... Kd7 {[%clk 0:00:13.4]} 44. Ra7+ {[%clk
0:00:19.4]} 44... Kd6 {[%clk 0:00:13]} 45. Ra6+ {[%clk 0:00:15.5]} 45... Kd7
{[%clk 0:00:11.8]} 46. Rb5 {[%clk 0:00:15.2]} 46... Rc2 {[%clk 0:00:09.8]} 47.
Rb7+ {[%clk 0:00:15.2]} 47... Kc8 {[%clk 0:00:10.1]} 48. Re7 {[%clk 0:00:14.9]}
48... Bd5 {[%clk 0:00:11]} 49. Kg3 {[%clk 0:00:08.4]} 49... Rxg2+ {[%clk
0:00:11.1]} 50. Kf4 {[%clk 0:00:07.8]} 50... Rc2 {[%clk 0:00:11.2]} 51. Rd6
{[%clk 0:00:07.2]} 51... Rc4+ {[%clk 0:00:09.8]} 52. Ke5 {[%clk 0:00:06.3]}
52... Bc6 {[%clk 0:00:10.7]} 53. Rd4 {[%clk 0:00:05.3]} 53... Rc5+ {[%clk
0:00:10.7]} 54. Kd6 {[%clk 0:00:05.8]} 54... Rc1 {[%clk 0:00:10.8]} 55. Rb4
{[%clk 0:00:05.7]} 55... Ba8 {[%clk 0:00:08.8]} 56. Rxf7 {[%clk 0:00:05.8]}
56... Rd1+ {[%clk 0:00:08.6]} 57. Kc5 {[%clk 0:00:05.8]} 57... Rc1+ {[%clk
0:00:08.7]} 58. Kb6 {[%clk 0:00:06.2]} 58... Rc6+ {[%clk 0:00:08.1]} 59. Kb5
{[%clk 0:00:06.2]} 59... Rc7 {[%clk 0:00:08.3]} 60. Rxc7+ {[%clk 0:00:06.2]}
60... Kxc7 {[%clk 0:00:08.8]} 61. f7 {[%clk 0:00:07.1]} 61... Bc6+ {[%clk
0:00:09.3]} 62. Kc5 {[%clk 0:00:07.6]} 62... Be8 {[%clk 0:00:10]} 63. f8=Q
{[%clk 0:00:08.2]} 63... Bf7 {[%clk 0:00:10.9]} 64. Qd6+ {[%clk 0:00:08.6]}
64... Kc8 {[%clk 0:00:11.2]} 65. Rb8# {[%clk 0:00:09.5]} 1-0

[Event "*** Titled Tuesday Blitz"]
[Site "Chess.com"]
[Date "2021.04.27"]
[Round "2"]
[White "SF-96"]
[Black "Elshan1985"]
[Result "1-0"]
[WhiteElo "2607"]
[BlackElo "2883"]
[TimeControl "180+1"]
[EndTime "10:19:26 PDT"]
[Termination "SF-96 won by resignation"]

1. Nf3 {[%clk 0:03:00.9]} 1... d5 {[%clk 0:02:46.3]} 2. g3 {[%clk 0:03:00.3]}
2... c6 {[%clk 0:02:46.2]} 3. Bg2 {[%clk 0:03:00.5]} 3... Bg4 {[%clk 0:02:45.8]}
4. O-O {[%clk 0:02:58.3]} 4... Nd7 {[%clk 0:02:46.3]} 5. d4 {[%clk 0:02:54.9]}
5... e6 {[%clk 0:02:46.2]} 6. c4 {[%clk 0:02:54.7]} 6... Bd6 {[%clk 0:02:45.8]}
7. Qb3 {[%clk 0:02:38.4]} 7... Rb8 {[%clk 0:02:44.3]} 8. Nc3 {[%clk 0:02:36]}
8... f5 {[%clk 0:02:41.3]} 9. Ng5 {[%clk 0:02:17.5]} 9... Qe7 {[%clk 0:02:37.5]}
10. cxd5 {[%clk 0:02:08.1]} 10... exd5 {[%clk 0:02:33]} 11. Bxd5 {[%clk
0:02:08.7]} 11... cxd5 {[%clk 0:02:21.5]} 12. Nxd5 {[%clk 0:02:09.6]} 12... Qf8
{[%clk 0:02:12.1]} 13. Bf4 {[%clk 0:01:56.8]} 13... Bxf4 {[%clk 0:02:04.6]} 14.
Nxf4 {[%clk 0:01:57.7]} 14... Ngf6 {[%clk 0:01:51.3]} 15. h3 {[%clk 0:01:30.1]}
15... Bh5 {[%clk 0:01:44.7]} 16. e4 {[%clk 0:00:59.7]} 16... Bf7 {[%clk
0:01:33.6]} 17. Qe3 {[%clk 0:00:50.2]} 17... fxe4 {[%clk 0:01:31.8]} 18. Rfe1
{[%clk 0:00:38.6]} 18... Qe7 {[%clk 0:01:24.3]} 19. Nxf7 {[%clk 0:00:25.3]}
19... Qxf7 {[%clk 0:01:19.6]} 20. Qa3 {[%clk 0:00:25.8]} 20... g5 {[%clk
0:00:59.6]} 21. Nd3 {[%clk 0:00:23.6]} 21... Qe7 {[%clk 0:00:58.9]} 22. Qb3
{[%clk 0:00:23.5]} 22... Kf8 {[%clk 0:00:42.2]} 23. Rac1 {[%clk 0:00:19.6]}
23... Kg7 {[%clk 0:00:34.6]} 24. Nc5 {[%clk 0:00:17.2]} 24... Nxc5 {[%clk
0:00:33.6]} 25. Rxc5 {[%clk 0:00:18.1]} 25... Qf7 {[%clk 0:00:21]} 26. Rxg5+
{[%clk 0:00:17]} 26... Kf8 {[%clk 0:00:20.3]} 27. Qa3+ {[%clk 0:00:14.9]} 27...
Qe7 {[%clk 0:00:20.1]} 28. Qe3 {[%clk 0:00:14.6]} 28... Rg8 {[%clk 0:00:19.3]}
29. Rf5 {[%clk 0:00:14.8]} 29... Rg6 {[%clk 0:00:19.5]} 30. Qf4 {[%clk 0:00:15]}
30... Re8 {[%clk 0:00:18.9]} 31. g4 {[%clk 0:00:14.1]} 31... Kg7 {[%clk
0:00:18.7]} 32. Rc1 {[%clk 0:00:12.8]} 32... Qe6 {[%clk 0:00:15.8]} 33. Re5
{[%clk 0:00:12.2]} 33... Qf7 {[%clk 0:00:14.3]} 34. Rf5 {[%clk 0:00:10.5]} 34...
Qe6 {[%clk 0:00:12.7]} 35. Rc7+ {[%clk 0:00:10.8]} 35... Re7 {[%clk 0:00:12.6]}
36. Re5 {[%clk 0:00:11.2]} 36... Qxe5 {[%clk 0:00:11.7]} 37. Qxe5 {[%clk
0:00:11.2]} 37... Rf7 {[%clk 0:00:11]} 38. Rxf7+ {[%clk 0:00:11.1]} 38... Kxf7
{[%clk 0:00:11.9]} 39. Qc7+ {[%clk 0:00:11.8]} 39... Ke6 {[%clk 0:00:12.5]} 40.
Qxb7 {[%clk 0:00:12.4]} 40... h5 {[%clk 0:00:12.8]} 41. Qxa7 {[%clk 0:00:09.2]}
41... hxg4 {[%clk 0:00:12.7]} 42. hxg4 {[%clk 0:00:10.1]} 42... Rxg4+ {[%clk
0:00:13.2]} 43. Kf1 {[%clk 0:00:10.5]} 43... Rg5 {[%clk 0:00:14.1]} 44. Qb6+
{[%clk 0:00:10.4]} 44... Kf5 {[%clk 0:00:13.9]} 45. a4 {[%clk 0:00:09.9]} 45...
Nd5 {[%clk 0:00:14.5]} 46. Qc5 {[%clk 0:00:07.6]} 46... Kf4 {[%clk 0:00:14.8]}
47. Qd6+ {[%clk 0:00:07]} 47... Kf3 {[%clk 0:00:13.9]} 48. Qa3+ {[%clk
0:00:05.8]} 48... e3 {[%clk 0:00:13.9]} 49. Qd3 {[%clk 0:00:03]} 49... Kf4
{[%clk 0:00:11.4]} 50. fxe3+ {[%clk 0:00:02.9]} 50... Nxe3+ {[%clk 0:00:12.3]}
51. Ke1 {[%clk 0:00:03.4]} 51... Rg1+ {[%clk 0:00:12.3]} 52. Ke2 {[%clk
0:00:03.1]} 52... Rg2+ {[%clk 0:00:12.8]} 53. Ke1 {[%clk 0:00:03.7]} 53... Rg1+
{[%clk 0:00:13]} 54. Kd2 {[%clk 0:00:04]} 54... Rd1+ {[%clk 0:00:12.8]} 55. Kc3
{[%clk 0:00:04.6]} 55... Rxd3+ {[%clk 0:00:13]} 56. Kxd3 {[%clk 0:00:05.5]}
56... Nd5 {[%clk 0:00:13.4]} 57. a5 {[%clk 0:00:05]} 57... Kf5 {[%clk
0:00:13.9]} 58. Kc4 {[%clk 0:00:04.8]} 58... Ke6 {[%clk 0:00:14.4]} 59. Kc5
{[%clk 0:00:04.1]} 59... Nc7 {[%clk 0:00:14]} 60. b4 {[%clk 0:00:03.8]} 60...
Kd7 {[%clk 0:00:13.9]} 61. b5 {[%clk 0:00:04.1]} 61... Ne6+ {[%clk 0:00:14.5]}
62. Kc4 {[%clk 0:00:03.5]} 62... Kd6 {[%clk 0:00:13.8]} 63. b6 {[%clk
0:00:02.5]} 63... Kc6 {[%clk 0:00:14]} 64. d5+ {[%clk 0:00:02.5]} 1-0